Cogmind - Beta 17 @@@ ROGUE MODE // 2026.07.01 @ 16:09:06 Player: alice_fexa Result: Destroyed by Q1-0QE(h) with Bolt Gun Performance ------------- Evolutions (0) 0 Regions Visited (3) 600 Robots Destroyed (19) 95 Value Destroyed (335) 335 Prototype IDs (9) 180 Alien Tech Used (0) 0 Bonus (5800) 5800 TOTAL SCORE: 7010 Bonus ------- Prayed to X0-1V1 5000 Registered with UFD 300 Met Optimus in HQ 500 Cogmind --------- Core Integrity 0/250 Matter 290/300 Energy 340/340 System Corruption 0% Temperature Cool (57) Movement Treading (240) Ox1 Location -9/Scraptown Parts ------- > --- POWER (1) -------- Graviton Reactor > --- PROPULSION (2) --- Light Treads > --- UTILITY (2) ------ Large Storage Unit Seismic Detector > --- WEAPON (2) ------- Spear > --- INVENTORY (15) --- Light Nuclear Core Light Nuclear Core Improved Hover Unit Improved Hover Unit Improved Hover Unit Improved Hover Unit Gravmag System Actuator Array A0-MCA's Component Scanner X0-1V1's Piety Tracker Plasma Cutter CPS Tube (2) Hammer Maul Maul Peak State ------------ > --- POWER ------------ Graviton Reactor > --- PROPULSION ------- Light Treads Wheel > --- UTILITY ---------- Large Storage Unit Seismic Detector > --- WEAPON ----------- Maul Spear > --- INVENTORY -------- Light Nuclear Core Light Nuclear Core Improved Hover Unit Improved Hover Unit Improved Hover Unit Improved Hover Unit Gravmag System Actuator Array A0-MCA's Component Scanner X0-1V1's Piety Tracker Grenade Launcher Plasma Cutter CPS Tube Hammer Maul [Rating: 24] Favorites ----------- Power Light Ion Engine Engine Light Ion Engine Reactor Graviton Reactor Propulsion Light Treads Treads Light Treads Wheel Wheel Utility Large Storage Unit Device Seismic Detector Storage Large Storage Unit Processor Targeting Computer Weapon Maul Energy Gun Small Laser Ballistic Gun Light Assault Rifle Launcher Grenade Launcher Impact Weapon Maul Piercing Weapon Spear Build | -11 -10 -10 -9 ------- Run | Yrd Mat Sub Scr Slots Evolved . | . . . . Power . | . . . . Propulsion . | . . . . Utility . | . . . . Weapon . | . . . . Parts Attached 19 | 6 8 . 5 Power 4 | 1 1 . 2 Engine 3 | 1 1 . 1 Core . | . . . . Reactor 1 | . . . 1 Propulsion 6 | 2 2 . 2 Treads 3 | 1 1 . 1 Leg . | . . . . Wheel 3 | 1 1 . 1 Hover . | . . . . Flight . | . . . . Utility 4 | 1 3 . . Device 1 | . 1 . . Storage 2 | 1 1 . . Processor 1 | . 1 . . Hackware . | . . . . Protection . | . . . . Artifact . | . . . . Weapon 5 | 2 2 . 1 Energy Gun 1 | 1 . . . Energy Cannon . | . . . . Ballistic Gun 1 | 1 . . . Ballistic Cannon . | . . . . Launcher 1 | . 1 . . Special Weapon . | . . . . Impact Weapon 1 | . 1 . . Slashing Weapon . | . . . . Piercing Weapon 1 | . . . 1 Special Melee Weapon . | . . . . Unidentified Prototypes 1 | . . . 1 Parts Lost 3 | . 1 . 2 Power 1 | . 1 . . Propulsion 1 | . . . 1 Utility . | . . . . Weapon 1 | . . . 1 Highest Loss Streak 2 | . 1 . 2 To Critical Strikes . | . . . . Average Backups 13 | 2 12 15 15 Power 1 | . 1 2 2 Propulsion 4 | 1 4 6 5 Utility 1 | . 1 1 2 Weapon 4 | . 4 6 3 Tool/Special . | . . . . Unused Backups 18 | . . . 18 Power 2 | . . . 2 Propulsion 6 | . . . 6 Utility 3 | . . . 3 Weapon 5 | . . . 5 Tool/Special 2 | . . . 2 Average Slot Usage (%) 99 | . 99 100 100 Engine 13 | . 13 14 13 Treads 14 | . 14 14 14 Wheel 14 | . 14 14 14 Device 8 | . . 14 14 Storage 14 | . 14 14 14 Processor 5 | . 13 . . Ballistic Gun 6 | . 14 14 1 Impact Weapon 13 | . 12 14 13 Piercing Weapon 7 | . . . 12 Peak Build Rating 24 | 6 11 11 24 Average Rating 12 | 5 9 11 15 On Entrance 7 | . 6 11 11 Avg Prop Armor Cover (%) 15 | 15 14 14 15 Naked Turns . | . . . . Heaviest Build 41 | 10 28 28 41 Greatest Support 20 | 20 20 10 20 Greatest Overweight (x) 4 | . 2 2 4 Average Overweight (x) 1 | . 1 2 2 Largest Inventory Capacity 15 | 8 15 15 15 Average Capacity 14 | 7 14 15 15 Most Carried 15 | 5 15 15 15 Average Carried 13 | 3 12 15 14 Final Capacity 15 | 8 15 15 15 Final Carried 15 | 5 15 15 15 Class Distribution -------------------- 100% | Mutant Dominant Class ---------------- Mutant | -10/Materials Mutant | -10/Subcaves Mutant | -9/Scraptown Resources | -11 -10 -10 -9 ----------- Run | Yrd Mat Sub Scr Matter Collected 487 | 267 160 . 60 Remotely . | . . . . Salvage Created 547 | 149 376 . 22 Parts 39 | 12 23 . 4 Haulers Intercepted 2 | . 2 . . Recyclers Shooed . | . . . . Parts Field Recycled . | . . . . Retrieved Matter . | . . . . Parts Self-Destructed 5 | . . 5 . Prevented . | . . . . Parts Restored . | . . . . Kills | -11 -10 -10 -9 ------- Run | Yrd Mat Sub Scr Combat Hostiles Destroyed 10 | . 10 . . Melee 3 | . 3 . . AOE 5 | . 5 . . Classes Destroyed 8 | 2 5 . 1 Tunneler 3 | 3 . . . Hauler 2 | . 2 . . Recycler 1 | 1 . . . Operator 1 | . 1 . . Watcher 2 | . 2 . . Swarmer 5 | . 5 . . Grunt 5 | . 5 . . Tinkerer 1 | . . . 1 Best Kill Streak 3 | 3 3 . 1 Combat Bots Only 3 | . 3 . . Max Kills in Single Turn 2 | 1 2 . 1 Gunslinging . | . . . . Exploded 2 | . 2 . . Melee 1 | . 1 . . Uniques/NPCs Destroyed . | . . . . Combat | -11 -10 -10 -9 -------- Run | Yrd Mat Sub Scr Hostile Shots Fired 83 | . 52 . 31 Missed 18 | . 14 . 4 Hits 65 | . 38 . 27 Projectile 65 | . 38 . 27 Critical Strikes 2 | . 1 . 1 Damage Taken 881 | . 480 . 401 Core 256 | . 129 . 127 Absorbed by Shields . | . . . . Core Remaining (%) 100 | 100 . . . Volleys Fired 19 | 7 11 . 1 Largest 2 | 2 2 . 1 Hottest 60 | 60 60 . 30 Shots Fired 31 | 14 16 . 1 Gun 24 | 14 10 . . Cannon . | . . . . Launcher 7 | . 6 . 1 Special . | . . . . Kinetic 12 | 7 5 . . Thermal 12 | 7 5 . . Explosive 7 | . 6 . 1 Electromagnetic . | . . . . Robot Hit Streak 9 | 9 6 . . Robot Miss Streak 2 | 1 2 . . Penetration Max . | . . . . Secondary Targets . | . . . . Shots Hit Robots 38 | 10 26 . 2 Core Hits 16 | 6 9 . 1 Critical Kills 1 | . 1 . . Critical Parts Destroyed 1 | . 1 . . Critical Strikes 3 | . 2 . 1 Smash 2 | . 2 . . Impale 1 | . . . 1 Melee Attacks 36 | . 31 . 5 Impact 32 | . 31 . 1 Slashing . | . . . . Piercing 4 | . . . 4 Sneak Attacks 4 | . 3 . 1 Combat Hostiles . | . . . . Follow-up Attacks . | . . . . Damage Inflicted 1224 | 109 991 . 124 Guns 181 | 109 72 . . Cannons . | . . . . Explosions 241 | . 202 . 39 Melee 802 | . 717 . 85 Ramming . | . . . . Kinetic 58 | 31 27 . . Thermal 123 | 78 45 . . Explosive 241 | . 202 . 39 Electromagnetic . | . . . . Impact 717 | . 717 . . Slashing . | . . . . Piercing 85 | . . . 85 Highest Corruption . | . . . . Average Corruption . | . . . . Corruption Purged . | . . . . Corruption Blocked . | . . . . Overload Shots . | . . . . Overflow Damage 122 | . 122 . . Projectiles . | . . . . Explosions . | . . . . Melee 122 | . 122 . . Knockbacks . | . . . . Impact . | . . . . Kinetic . | . . . . Secondary . | . . . . Self-Inflicted Damage 40 | . 40 . . Shots 1 | . 1 . . Rammed . | . . . . Targets Rammed . | . . . . Kicked . | . . . . Crushed . | . . . . Highest Temperature 76 | 40 76 . 57 Average Temperature 31 | 22 37 . 36 Received Heat Transfer 424 | . 225 . 199 Siege Activations . | . . . . Martial Activations . | . . . . Shielding Activations . | . . . . Robots Disrupted . | . . . . Combat Hostiles . | . . . . Robots Corrupted 5 | . 5 . . Combat Hostiles 2 | . 2 . . Parts Fried 5 | . 5 . . Impact Corruptions 9 | . 9 . . Robots Melted . | . . . . Combat Hostiles . | . . . . Parts Melted . | . . . . Heat Transferred 275 | 175 100 . . Parts Sabotaged . | . . . . Parts Stolen . | . . . . Parts Stripped . | . . . . Power Chain Reactions . | . . . . Alert | -11 -10 -10 -9 ------- Run | Yrd Mat Sub Scr Maximum Alert Level . | . . . . Low Security (%) 100 | 100 100 . . Level 1 . | . . . . Level 2 . | . . . . Level 3 . | . . . . Level 4 . | . . . . Level 5 . | . . . . High Security . | . . . . Max Security . | . . . . Peak Influence 134 | 10 134 . . Initial . | . . . . Average 32 | 2 35 . . Influence Increases 373 | 20 353 . . Destroy 0b10 Robot/C 200 | . 200 . . Destroy 0b10 Robot/NC 45 | 20 25 . . Destroy Leader 48 | . 48 . . Successful Hack 13 | . 13 . . Disable Machine 15 | . 15 . . Destroy Structure 37 | . 37 . . Lose Combat Pursuer 15 | . 15 . . Influence Decreases 373 | 20 328 25 . Entered New Map 13 | . . 13 . Time Decay 360 | 20 328 12 . Squads Dispatched 1 | . 1 . . Investigation . | . . . . Extermination . | . . . . Reinforcement 1 | . 1 . . Assault . | . . . . Garrison . | . . . . Intercept . | . . . . Searches Triggered . | . . . . Construction Impeded . | . . . . Haulers Reinforced . | . . . . Active Scanning Responses . | . . . . Cargo Convoy Interrupts . | . . . . Stealth | -11 -10 -10 -9 --------- Run | Yrd Mat Sub Scr Distress Signals 2 | . 2 . . Communications Jammed . | . . . . Distress Signals . | . . . . Times Spotted 34 | . 22 1 11 Peak Tracking Total 6 | . 4 1 6 Tactical Retreats 1 | . 1 . . Traps | -11 -10 -10 -9 ------- Run | Yrd Mat Sub Scr Traps Triggered . | . . . . Indirectly . | . . . . Trap Hack Attempts . | . . . . Triggered . | . . . . Disarmed . | . . . . Reprogrammed . | . . . . Reused . | . . . . Traps Extracted . | . . . . Installed . | . . . . Triggered . | . . . . Machines | -11 -10 -10 -9 ---------- Run | Yrd Mat Sub Scr Machines Disabled 1 | . 1 . . Max in Single Turn 1 | . 1 . . Machines Repaired . | . . . . Machines Dismantled . | . . . . Machines Sabotaged . | . . . . Overloaded Fab Kills . | . . . . Hacking | -11 -10 -10 -9 --------- Run | Yrd Mat Sub Scr Machines Accessed 8 | . 7 . 1 Terminals 6 | . 6 . . Fabricators . | . . . . Repair Stations . | . . . . Recycling Units 1 | . 1 . . Scanalyzers . | . . . . Garrison Access . | . . . . Total Hacks 26 | . 17 . 9 Successful 20 | . 11 . 9 Failed 6 | . 6 . . Catastrophic . | . . . . Database Lockouts . | . . . . Manual 14 | . 14 . . Terminals 14 | . 14 . . Fabricators . | . . . . Repair Stations . | . . . . Recycling Units 3 | . 3 . . Scanalyzers . | . . . . Garrison Access . | . . . . Terminal Hacks 10 | . 1 . 9 Record 9 | . . . 9 Locate Traps 1 | . 1 . . Fabricator Hacks . | . . . . Repair Station Hacks . | . . . . Recycling Unit Hacks 1 | . 1 . . Retrieve Components 1 | . 1 . . Scanalyzer . | . . . . Garrison Access Hacks . | . . . . Unauthorized Hacks 9 | . 9 . . Terminals 9 | . 9 . . Assimilate 1 | . 1 . . Botnet 3 | . 3 . . Skim 5 | . 5 . . Fabricators . | . . . . Repair Stations . | . . . . Recycling Units . | . . . . Scanalyzers . | . . . . Garrison Access . | . . . . Data Cores Recovered . | . . . . Used . | . . . . Hacking Detections 5 | . 5 . . Full Trace Events . | . . . . Feedback Events . | . . . . Feedback Blocked . | . . . . Robot Schematics Acquired . | . . . . Robots Built . | . . . . Authchips . | . . . . Time . | . . . . Total Robot Build Rating . | . . . . Part Schematics Acquired . | . . . . Parts Built . | . . . . Authchips . | . . . . Time . | . . . . Total Part Build Rating . | . . . . Part Studies Acquired . | . . . . Parts Repaired . | . . . . Time . | . . . . Parts Recycled . | . . . . Recycled Matter . | . . . . Retrieved Matter . | . . . . Retrieved Components 3 | . 3 . . Parts Scanalyzed . | . . . . Part Schematics Acquired . | . . . . Parts Damaged . | . . . . Bothacking | -11 -10 -10 -9 ------------ Run | Yrd Mat Sub Scr Used RIF Installer . | . . . . Robots Hacked . | . . . . Non-combat . | . . . . Combat . | . . . . Robot Hacks Applied . | . . . . Relay Couplers Released . | . . . . Fabnet Peak Effective % . | . . . . Robots Rewired . | . . . . Allies Hacked . | . . . . Hacks Repelled . | . . . . Allies | -11 -10 -10 -9 -------- Run | Yrd Mat Sub Scr Total Allies . | . . . . Largest Group . | . . . . Highest-Rated Group . | . . . . Highest-Rated Ally . | . . . . Total Orders . | . . . . Ally Attacks . | . . . . Total Damage . | . . . . Kills . | . . . . Allies Corrupted . | . . . . Allies Melted 2 | . . . 2 X0-1V1 Amusement Gains 79 | . 9 . 70 Good Acts 1 | . . . 1 Intel | -11 -10 -10 -9 ------- Run | Yrd Mat Sub Scr Active Infowar (turns) 1969 | . 4 113 1852 Seismic 1969 | . 4 113 1852 Robot Analysis Total . | . . . . Derelict Logs Recovered . | . . . . Drone Launches . | . . . . Drone Recoveries . | . . . . Exploration | -11 -10 -10 -9 ------------- Run | Yrd Mat Sub Scr Turns Passed 3296 | 97 1234 113 1852 Spaces Moved 2303 | 61 912 61 1269 Core 4 | 4 . . . Treads 9 | 3 4 . 2 Legs . | . . . . Wheels 2290 | 54 908 61 1267 Hover . | . . . . Flight . | . . . . Fastest Speed 50 | 50 100 110 110 Average Speed 114 | 99 113 110 116 Slowest Speed 240 | 160 240 110 240 Overloaded Moves . | . . . . Propulsion Burnouts . | . . . . Robots Hopped 1 | . . . 1 Potential Cave-ins . | . . . . Cave-ins Triggered . | . . . . Exploration Rate (%) 50 | 3 98 10 89 Regions Visited 3 Branch Regions 2 Pre-discovered Areas 1 | . 1 . . Known Exits Taken 1 | . 1 . . Unknown Exits Taken 2 | 1 . 1 . Scrap Searched 6 | . . . 6 Spaces Dug 20 | . 18 . 2 Terrain Destroyed 42 | . 35 . 7 Melee 3 | . 1 . 2 Projectile . | . . . . AOE 39 | . 34 . 5 Terrain Rammed . | . . . . Walls Destroyed . | . . . . Machines Disabled . | . . . . Actions | -11 -10 -10 -9 --------- Run | Yrd Mat Sub Scr Total 2857 | 81 1034 107 1635 Wait 441 | 3 52 47 339 Move 2298 | 60 911 60 1267 Hop 1 | . . . 1 Pick Up 24 | 5 13 . 6 Fast Attach 10 | 6 2 . 2 Attach 2 | . 2 . . Detach 1 | . 1 . . Swap 11 | . 7 . 4 Drop 15 | . 4 . 11 Fire 19 | 7 11 . 1 Melee 35 | . 31 . 4 Ram . | . . . . Kick . | . . . . Crush . | . . . . Escape Stasis . | . . . . Rewire . | . . . . Trap . | . . . . Miscellaneous . | . . . . Route ------- -11/Scrapyard -10/Materials (discovered 5 exits: *Mat x3 / [*Min] / *Sub) -10/Subcaves -9/Scraptown (discovered 2 exits: *Fac x2) History --------- Turn | Location | Event 26 | -11/Scrapyard | Discovered new exit (range 15) 98 | -11/Scrapyard | Entered Materials 302 | -10/Materials | Build established: Mutant 373 | -10/Materials | Discovered new exit (range 6) 577 | -10/Materials | Discovered new exit (range 13) 673 | -10/Materials | Identified exit to Subcaves 707 | -10/Materials | Identified exit to Materials 731 | -10/Materials | Learned 4 Recycling zone layouts 753 | -10/Materials | Learned location of 2 exits from Mines 770 | -10/Materials | Learned Storage trap positions 799 | -10/Materials | Learned location of Subcaves (-10) 883 | -10/Materials | Discovered exit to Materials (range 15) 955 | -10/Materials | Core integrity fell below 50% 971 | -10/Materials | Discovered new exit (range 10) 1327 | -10/Materials | Prayed at D.C.S.S. Altar Unit 1332 | -10/Materials | Entered Subcaves 1333 | -10/Subcaves | Approached by a straggling Scientist 1436 | -10/Subcaves | Scientist uncovered a shortcut to Scraptown 1445 | -10/Subcaves | Entered Scraptown 1649 | -9/Scraptown | Discovered new exit (range 13) 1704 | -9/Scraptown | Visited Awakened 1726 | -9/Scraptown | Visited Cyclists 1738 | -9/Scraptown | Visited Symbiants 1960 | -9/Scraptown | Visited Cave Peace 1975 | -9/Scraptown | Visited Junk Repository 2037 | -9/Scraptown | Visited Fellowship of the Rings 2052 | -9/Scraptown | Visited The Evicted 2070 | -9/Scraptown | Visited UFD Registry 2070 | -9/Scraptown | Registered with UFD as "Spikebucket" 2119 | -9/Scraptown | Entered Cyclist Reading Room 2190 | -9/Scraptown | Visited LU-1G1's Boring Crew 2227 | -9/Scraptown | Visited Science Testing Area 2248 | -9/Scraptown | Visited Curators Association 2288 | -9/Scraptown | Visited DA-N13 Charitable Foundation 2292 | -9/Scraptown | Found DCF Scrap (29 items) 2340 | -9/Scraptown | Visited Infowarlord's Domain 2357 | -9/Scraptown | Visited Scrap Suit Storage 2376 | -9/Scraptown | Visited Supply Room 2405 | -9/Scraptown | Visited A0-MCA Data Center 2412 | -9/Scraptown | Given a C rating by A0-MCA 2414 | -9/Scraptown | Found A0-MCA's Component Scanner 2440 | -9/Scraptown | Visited Chapter 10 2614 | -9/Scraptown | Visited Derelict Rescue Squad 2765 | -9/Scraptown | Met Optimus 2765 | -9/Scraptown | Accepted into 0bPrime 3165 | -9/Scraptown | Civil war broke out across Scraptown 3243 | -9/Scraptown | Identified exit to Factory 3294 | -9/Scraptown | Core integrity fell below 20% 3297 | -9/Scraptown | Destroyed by Q1-0QE(h) with Bolt Gun Last Messages --------------- 03262_ Triborg heat damages core (-105). 03276_ 1H-5U4(E) cannibalizes Mak. Microdissipator Network to repair Mak. Microdissipator Network. 03282_ X0-1V1 is amused. 03287_ Penetrated by Bolt. 03287_ CQ-4GF(g) destroyed. 03289_ 64-8BC(j): "Don't throw away your lives for a pipe dream!" 03289_ Penetrated by Bolt. 03290_ Slug penetrates 64-8BC(j). 03291_ Wheel destroyed. 03293_ Grenade Launcher destroyed. 03294_ Slug penetrates 64-8BC(j). 03294_ 64-8BC(j) destroyed. 03294_ Slug penetrates 4I-ZDP(j). 03294_ Slug penetrates Q1-0QE(h). 03295_ Penetrated by Bolt. 03296_ Critical hit (Burn: +50). 03296_ Slug penetrates 4I-ZDP(j). 03297_ Bolt penetrates Wall. 03297_ X0-1V1 bursts into laughter! Map ----- +----------------------------------------------------+ | #?# ##" " """#???????# | | ######### #?# ##""" [="#???????# | | ???????# #?# ##"" ""#???????###### | | ??????### ########## ###########!####???????#### | | ??????# * = #???????#""" | | ####### =!= #???????#" | | """"""# !%! #???????#" | | =* #???????# | | # #???????#" | | """ # ################# ] #???#####" | | """ # #???????????????# [%! #???#"""" | | """ # #???????????????# ! #???#"""" | | # #???????????????# #???#"""" | | # #???????????????# #???#"""" | | """"""# ############????# #???#"""" | | ####### # """#" X "#????# ###?#"""" | | ??????# # ## "#????# ""#"#"""" | | ####### # X##????# !!"""#"""" | | """"" # # ## "#????# %%"#######" | | """" # # #" """#????# ###?????#" | | # # #######????# %%#########" | | # #??????????# | | # # #??????????# [ | | # # #??????????# %= | | # # "X"#??????###?#[ | | # ########@###%! % % | | # [!=! [= * | | %=%= =% *%= ! =%= | | """" # [=[ =%=!*!* =%* =%= | | """"" # ! [*=!=%!= [= [ [ | | ####### =*[*!=*%!= !!=%[ | | # =!*%[j[*= !=!!= ! #""""#" | | [!=j!!!!* !%!!=![ [%! %[ #????#" | | # %=!%=%[=! =%=!!%%!!= = #????#""" | | ###### ""######;###!%%###;;;;## !#"##????#### | | #?# = #?##??##![=? #### [*# #???????# | | # #?# #??????#=%*[ #??#==%###???????# | | # #?# # #=!#??????# !%" #??#!!=#??????????? | | # #?#[!# [ #!=#??????# """ #??#!%!#??????????? | | # #?#=!#[=!#! #??????# """"" #??#*!=#??????????? | | # #?###########??????# ""X"" #??#=%[#??????????? | | # #??????????????????# "" "" ???# #??????????? | | # #??????????????????# ??????# #??????????? | | # #???????????????????##?#??????# #??????????? | | # #?????????????????????????????# #??????????? | | # #?????????????????????????????# #??????????? | | # #??????????????????############ #??????????? | | # #??????????????????#""""""""""" #??????????? | | # #??????????????????#""""" """"" #??????????? | | ##???????????#######"""" " "" #??????????? | +----------------------------------------------------+ Best States ------------- Heat Dissipation 25 Energy Generation 29 Energy Capacity 340 Matter Stores 300 Matter Capacity 300 Sight Range 16 Terrain Scan Density 10 Evasion (%) 40 Targeting Accuracy 5 Recoil Reduction 1 Item Schematics ----------------- None Robot Schematics ------------------ None Fabricated ------------ Nothing Repaired ---------- Nothing Studied --------- None Alien Tech Used ----------------- None Achievements -------------- None Challenges ------------ None Game ------ Seed LightningReflexChainsaw Manual? 0 Play Time 00:17:40 Cumulative 1676.8 hours Start 2026.07.01 @ 15:55:22 End 2026.07.01 @ 16:09:06 Sessions 1 Manual Loads 0 Difficulty Rogue Special Mode None Game No. 1190 Rogue 1150 Adventurer 40 Explorer 0 Win Type - Total 220 Types 104/11/74/2/2/4/16/2/1/4 Lore% 97 Gallery% 96 Achievement% 88 Wizard Run 0 Options --------- Layout 0 ASCII 0 Keyboard 0 Movement Numpad Keybinds 0 Fullscreen 0 Font 20/Terminus Map View 76x50 Zoom Use 0% Tactical HUD 1 Map Filters NONE Filters NONE Steam 1 RUN: c28a44fe-5684-4cc7-b61a-b32d885f67e5